[Event "GrandPrix_29.05"]
[Site "Chess.com"]
[Date "2020.05.29"]
[Round "7"]
[White "Meri-Arabidze"]
[Black "weplaychess09"]
[Result "0-1"]
[WhiteElo "1908"]
[BlackElo "2068"]
[TimeControl "600+2"]
[EndTime "12:34:20 PDT"]
[Termination "weplaychess09 won by resignation"]

1. d4 {[%clk 0:10:01.9]} 1... Nf6 {[%clk 0:09:59.8]} 2. c4 {[%clk 0:10:03]} 2...
e6 {[%clk 0:10:00.4]} 3. Nf3 {[%clk 0:10:04.1]} 3... d5 {[%clk 0:10:00.8]} 4.
Nc3 {[%clk 0:10:04.4]} 4... Be7 {[%clk 0:10:01.5]} 5. Bf4 {[%clk 0:10:02.1]}
5... O-O {[%clk 0:10:01.8]} 6. a3 {[%clk 0:10:02.8]} 6... b6 {[%clk 0:09:48.2]}
7. cxd5 {[%clk 0:10:02.8]} 7... Nxd5 {[%clk 0:09:48.8]} 8. Nxd5 {[%clk
0:10:01.8]} 8... Qxd5 {[%clk 0:09:46.7]} 9. Rc1 {[%clk 0:09:30.4]} 9... Bb7
{[%clk 0:09:34.7]} 10. e3 {[%clk 0:08:10.9]} 10... c5 {[%clk 0:09:28.5]} 11. Bc4
{[%clk 0:07:54.4]} 11... Qh5 {[%clk 0:09:20.5]} 12. Be2 {[%clk 0:07:52.6]} 12...
Qg6 {[%clk 0:09:10]} 13. O-O {[%clk 0:07:45.4]} 13... Nd7 {[%clk 0:09:07.6]} 14.
Bg3 {[%clk 0:07:40.6]} 14... Rfd8 {[%clk 0:09:04.2]} 15. Qa4 {[%clk 0:07:07]}
15... cxd4 {[%clk 0:08:34.3]} 16. exd4 {[%clk 0:07:06.7]} 16... Qe4 {[%clk
0:08:07.6]} 17. Rfe1 {[%clk 0:06:58.1]} 17... Rac8 {[%clk 0:07:34]} 18. Rxc8
{[%clk 0:06:19.4]} 18... Bxc8 {[%clk 0:07:28.9]} 19. Ba6 {[%clk 0:06:13.4]}
19... Qd5 {[%clk 0:07:24.4]} 20. Bc4 {[%clk 0:06:13.4]} 20... Qa8 {[%clk
0:07:18.8]} 21. Bc7 {[%clk 0:05:47.8]} 21... Rf8 {[%clk 0:07:12.4]} 22. d5
{[%clk 0:04:45.4]} 22... Nc5 {[%clk 0:06:59.7]} 23. Qd1 {[%clk 0:04:41.9]} 23...
Bf6 {[%clk 0:06:17.5]} 24. b4 {[%clk 0:04:35.6]} 24... exd5 {[%clk 0:05:57.8]}
25. Bxd5 {[%clk 0:04:28.2]} 25... Bb7 {[%clk 0:05:58.3]} 26. Bxb7 {[%clk
0:04:14.8]} 26... Nxb7 {[%clk 0:05:51.4]} 27. Be5 {[%clk 0:03:06.7]} 27... Rd8
{[%clk 0:05:46.1]} 28. Qa1 {[%clk 0:03:07]} 28... Bxe5 {[%clk 0:05:45.7]} 29.
Qxe5 {[%clk 0:03:08.9]} 29... Nd6 {[%clk 0:05:44.4]} 30. Qh5 {[%clk 0:03:00.3]}
30... h6 {[%clk 0:05:42.2]} 31. h4 {[%clk 0:02:40.2]} 31... Qb7 {[%clk
0:05:32.2]} 32. Qg4 {[%clk 0:02:31.3]} 32... Qa6 {[%clk 0:05:23.1]} 33. Re3
{[%clk 0:02:19.5]} 33... Nc4 {[%clk 0:05:00.1]} 34. Re7 {[%clk 0:02:19.9]} 34...
Nd6 {[%clk 0:04:13.4]} 35. Re3 {[%clk 0:01:51.5]} 35... Nc4 {[%clk 0:03:54.3]}
36. Re7 {[%clk 0:01:52.2]} 36... b5 {[%clk 0:03:49.7]} 37. Qf4 {[%clk
0:01:37.8]} 37... Rf8 {[%clk 0:03:42.9]} 38. Nd4 {[%clk 0:01:26.6]} 38... Qxa3
{[%clk 0:03:38.5]} 39. Nc6 {[%clk 0:01:14.4]} 39... a6 {[%clk 0:02:37]} 40. Ra7
{[%clk 0:01:14.7]} 40... Qa1+ {[%clk 0:02:27.3]} 41. Kh2 {[%clk 0:01:15]} 41...
Qb1 {[%clk 0:01:58]} 42. Rxa6 {[%clk 0:01:00.9]} 42... Kh8 {[%clk 0:01:46.7]}
43. Ne7 {[%clk 0:00:42.1]} 43... f6 {[%clk 0:01:39.5]} 44. h5 {[%clk 0:00:35.9]}
44... Ne5 {[%clk 0:01:36]} 45. Re6 {[%clk 0:00:26.9]} 45... Rd8 {[%clk
0:01:07.9]} 46. Nf5 {[%clk 0:00:21.4]} 46... Nf7 {[%clk 0:00:46.8]} 47. Ne7
{[%clk 0:00:18.1]} 47... Ng5 {[%clk 0:00:43.6]} 48. Ng6+ {[%clk 0:00:17.5]}
48... Kh7 {[%clk 0:00:44.1]} 49. Re7 {[%clk 0:00:17.2]} 49... Qb2 {[%clk
0:00:28.5]} 50. Qc7 {[%clk 0:00:13.1]} 50... Rg8 {[%clk 0:00:28.1]} 51. Qb6
{[%clk 0:00:07.5]} 51... f5 {[%clk 0:00:15.2]} 52. Qc7 {[%clk 0:00:07.7]} 52...
Qxb4 {[%clk 0:00:14.9]} 53. Rd7 {[%clk 0:00:07.7]} 53... Qg4 {[%clk 0:00:15]}
54. Ne7 {[%clk 0:00:08]} 54... Qxh5+ {[%clk 0:00:15.8]} 55. Kg1 {[%clk
0:00:09.3]} 55... Rf8 {[%clk 0:00:15.1]} 56. Nxf5 {[%clk 0:00:09.1]} 56... Rxf5
{[%clk 0:00:15.5]} 57. Rxg7+ {[%clk 0:00:10.1]} 57... Kh8 {[%clk 0:00:15.6]} 58.
Rd7 {[%clk 0:00:11.1]} 58... Rf7 {[%clk 0:00:12.4]} 59. Qe5+ {[%clk 0:00:11.1]}
59... Kh7 {[%clk 0:00:13.6]} 60. Rxf7+ {[%clk 0:00:11]} 60... Qxf7 {[%clk
0:00:14.7]} 61. Qxb5 {[%clk 0:00:12]} 61... Ne6 {[%clk 0:00:13.8]} 62. Qd5
{[%clk 0:00:12.5]} 62... Kg7 {[%clk 0:00:14.5]} 63. Qe5+ {[%clk 0:00:13.2]}
63... Qf6 {[%clk 0:00:15.7]} 64. Qd5 {[%clk 0:00:14.7]} 64... Nf4 {[%clk
0:00:16.3]} 65. Qb7+ {[%clk 0:00:15.1]} 65... Kg6 {[%clk 0:00:17.1]} 66. g3
{[%clk 0:00:16.2]} 66... Nh3+ {[%clk 0:00:17.6]} 67. Kg2 {[%clk 0:00:17.6]}
67... Nxf2 {[%clk 0:00:18.5]} 68. Qb2 {[%clk 0:00:16.5]} 68... Qxb2 {[%clk
0:00:18.9]} 0-1

[Event "GrandPrix_29.05"]
[Site "Chess.com"]
[Date "2020.05.29"]
[Round "7"]
[White "KruHor"]
[Black "Dyadya81"]
[Result "1-0"]
[WhiteElo "2444"]
[BlackElo "2196"]
[TimeControl "600+2"]
[EndTime "12:34:22 PDT"]
[Termination "KruHor won by resignation"]

1. d4 {[%clk 0:09:59.9]} 1... Nf6 {[%clk 0:09:59.8]} 2. Nf3 {[%clk 0:10:00.2]}
2... g6 {[%clk 0:10:01]} 3. c4 {[%clk 0:10:00.3]} 3... Bg7 {[%clk 0:10:02.3]} 4.
Nc3 {[%clk 0:10:00.7]} 4... d6 {[%clk 0:10:03.5]} 5. e4 {[%clk 0:09:59.6]} 5...
O-O {[%clk 0:10:03.5]} 6. Be2 {[%clk 0:09:59.9]} 6... Nbd7 {[%clk 0:10:03.3]} 7.
Be3 {[%clk 0:09:58.4]} 7... e5 {[%clk 0:10:02.7]} 8. d5 {[%clk 0:09:59.1]} 8...
Ng4 {[%clk 0:10:00.1]} 9. Bg5 {[%clk 0:09:58.2]} 9... f6 {[%clk 0:10:00.5]} 10.
Bd2 {[%clk 0:09:58.7]} 10... Nh6 {[%clk 0:09:56.2]} 11. h4 {[%clk 0:09:30.6]}
11... f5 {[%clk 0:09:23.7]} 12. h5 {[%clk 0:09:30.1]} 12... f4 {[%clk
0:09:11.2]} 13. hxg6 {[%clk 0:09:29.8]} 13... hxg6 {[%clk 0:09:13.1]} 14. g3
{[%clk 0:09:12.8]} 14... g5 {[%clk 0:08:18.4]} 15. Qc2 {[%clk 0:08:40.4]} 15...
Ng4 {[%clk 0:08:12]} 16. Rh5 {[%clk 0:06:53.4]} 16... Ndf6 {[%clk 0:06:40.6]}
17. Rxg5 {[%clk 0:06:50.7]} 17... Nh7 {[%clk 0:06:35.9]} 18. Rh5 {[%clk
0:05:50.1]} 18... c6 {[%clk 0:06:35.6]} 19. gxf4 {[%clk 0:05:32.5]} 19... Qb6
{[%clk 0:06:30.6]} 20. O-O-O {[%clk 0:05:30]} 20... Qxf2 {[%clk 0:06:24.1]} 21.
Rf1 {[%clk 0:04:53.2]} 21... Qb6 {[%clk 0:06:09.7]} 22. Nd1 {[%clk 0:04:04.8]}
22... Nhf6 {[%clk 0:05:50.1]} 23. Rh4 {[%clk 0:04:02.3]} 23... cxd5 {[%clk
0:05:22.1]} 24. exd5 {[%clk 0:03:42.3]} 24... exf4 {[%clk 0:05:20.3]} 25. Bxf4
{[%clk 0:03:35.6]} 25... Ne4 {[%clk 0:05:00.2]} 26. Ng5 {[%clk 0:02:58.2]} 26...
Nxg5 {[%clk 0:04:03.2]} 27. Bxg5 {[%clk 0:02:50.2]} 27... Rxf1 {[%clk
0:04:03.1]} 28. Bxf1 {[%clk 0:02:40.9]} 28... Qg1 {[%clk 0:03:45.2]} 29. Bd3
{[%clk 0:02:26.3]} 29... Nf6 {[%clk 0:02:19.6]} 30. Be3 {[%clk 0:02:12.1]} 30...
Qg3 {[%clk 0:02:17]} 31. Rh1 {[%clk 0:01:59.8]} 31... Ng4 {[%clk 0:01:54.9]} 32.
Bh7+ {[%clk 0:01:51.3]} 32... Kf8 {[%clk 0:01:56.3]} 33. Rf1+ {[%clk 0:01:45.6]}
33... Nf6 {[%clk 0:01:52.5]} 34. Bf4 {[%clk 0:01:27.4]} 34... Qg4 {[%clk
0:01:22.2]} 35. Bxd6+ {[%clk 0:01:25.9]} 35... Kf7 {[%clk 0:01:23.7]} 36. Ne3
{[%clk 0:01:12.8]} 36... Qh5 {[%clk 0:01:10.4]} 37. Bd3 {[%clk 0:01:05.7]} 37...
Bh6 {[%clk 0:01:05.1]} 38. Bf4 {[%clk 0:01:00.3]} 38... Bh3 {[%clk 0:01:04.6]}
39. Rf2 {[%clk 0:00:48.8]} 39... Qh4 {[%clk 0:01:00.2]} 40. Bxh6 {[%clk
0:00:44.8]} 40... Qxh6 {[%clk 0:01:02.1]} 41. Qd2 {[%clk 0:00:42.1]} 41... Re8
{[%clk 0:01:00.2]} 42. Nd1 {[%clk 0:00:36.6]} 42... Qh4 {[%clk 0:00:55.5]} 43.
Qf4 {[%clk 0:00:36]} 43... Qxf4+ {[%clk 0:00:53.6]} 44. Rxf4 {[%clk 0:00:36.9]}
44... Kg7 {[%clk 0:00:51.3]} 45. Kd2 {[%clk 0:00:36.9]} 45... Nd7 {[%clk
0:00:49.1]} 46. Ne3 {[%clk 0:00:36.5]} 46... Ne5 {[%clk 0:00:49.1]} 47. Bf5
{[%clk 0:00:30.8]} 47... Rh8 {[%clk 0:00:39.1]} 48. c5 {[%clk 0:00:24.8]} 48...
Rh6 {[%clk 0:00:30]} 49. Kc3 {[%clk 0:00:23.2]} 49... Nf7 {[%clk 0:00:29.4]} 50.
Bxh3 {[%clk 0:00:22.6]} 50... Rxh3 {[%clk 0:00:30.5]} 51. Kd4 {[%clk 0:00:23.4]}
51... Kg6 {[%clk 0:00:30.1]} 52. d6 {[%clk 0:00:23.5]} 52... Nd8 {[%clk
0:00:31.4]} 53. Re4 {[%clk 0:00:22.6]} 53... Nc6+ {[%clk 0:00:32.8]} 54. Kc4
{[%clk 0:00:22.4]} 54... Rh2 {[%clk 0:00:28.5]} 55. b4 {[%clk 0:00:22.3]} 55...
a6 {[%clk 0:00:21.2]} 56. a4 {[%clk 0:00:22.5]} 56... Rb2 {[%clk 0:00:20.4]} 57.
Kc3 {[%clk 0:00:22.9]} 57... Rb1 {[%clk 0:00:20.4]} 58. Nc2 {[%clk 0:00:23.2]}
58... Kf5 {[%clk 0:00:19.7]} 59. Re8 {[%clk 0:00:23.4]} 59... Rd1 {[%clk
0:00:17.2]} 60. b5 {[%clk 0:00:23.8]} 60... axb5 {[%clk 0:00:18.1]} 61. axb5
{[%clk 0:00:24.6]} 61... Na7 {[%clk 0:00:20]} 62. Nd4+ {[%clk 0:00:23.9]} 62...
Kf6 {[%clk 0:00:20.4]} 63. d7 {[%clk 0:00:23.8]} 63... Nxb5+ {[%clk 0:00:21.7]}
64. Nxb5 {[%clk 0:00:24.1]} 64... Rxd7 {[%clk 0:00:23.6]} 65. Kc4 {[%clk
0:00:24.4]} 65... Kf7 {[%clk 0:00:24.5]} 66. Rb8 {[%clk 0:00:24.5]} 66... Ke7
{[%clk 0:00:25.1]} 67. Nd6 {[%clk 0:00:25.1]} 67... Rc7 {[%clk 0:00:08.5]} 68.
Rxb7 {[%clk 0:00:24.9]} 68... Kd7 {[%clk 0:00:10.4]} 69. Rxc7+ {[%clk
0:00:25.4]} 69... Kd8 {[%clk 0:00:12.3]} 70. Nb5 {[%clk 0:00:25]} 1-0

[Event "GrandPrix_29.05"]
[Site "Chess.com"]
[Date "2020.05.29"]
[Round "7"]
[White "Karateloru"]
[Black "Borisss85"]
[Result "0-1"]
[WhiteElo "2189"]
[BlackElo "2227"]
[TimeControl "600+2"]
[EndTime "12:34:23 PDT"]
[Termination "Borisss85 won by resignation"]

1. e4 {[%clk 0:09:10.3]} 1... c5 {[%clk 0:09:58.6]} 2. Nf3 {[%clk 0:09:09.2]}
2... e6 {[%clk 0:09:58.9]} 3. d4 {[%clk 0:09:05]} 3... cxd4 {[%clk 0:09:59.7]}
4. Nxd4 {[%clk 0:09:06.9]} 4... a6 {[%clk 0:10:00]} 5. Bd3 {[%clk 0:09:07.2]}
5... Nf6 {[%clk 0:09:59]} 6. O-O {[%clk 0:09:07.4]} 6... d6 {[%clk 0:09:59.6]}
7. Nd2 {[%clk 0:09:07.3]} 7... g6 {[%clk 0:09:57.8]} 8. f4 {[%clk 0:09:01.6]}
8... Bg7 {[%clk 0:09:57.9]} 9. N2f3 {[%clk 0:09:02.4]} 9... O-O {[%clk
0:09:56.4]} 10. Kh1 {[%clk 0:09:02.8]} 10... b6 {[%clk 0:09:52.7]} 11. c4 {[%clk
0:08:55.6]} 11... Bb7 {[%clk 0:09:52.9]} 12. Qe2 {[%clk 0:08:56.6]} 12... e5
{[%clk 0:09:38.6]} 13. Nb3 {[%clk 0:08:33.8]} 13... exf4 {[%clk 0:09:28.6]} 14.
Bxf4 {[%clk 0:08:32.9]} 14... Re8 {[%clk 0:09:28.4]} 15. Nbd2 {[%clk 0:08:32.5]}
15... Nbd7 {[%clk 0:09:21.8]} 16. Bxd6 {[%clk 0:08:24]} 16... Nc5 {[%clk
0:09:19.1]} 17. e5 {[%clk 0:08:25]} 17... Ng4 {[%clk 0:09:02.3]} 18. Bxc5 {[%clk
0:08:05.2]} 18... bxc5 {[%clk 0:08:58]} 19. Be4 {[%clk 0:08:06.7]} 19... Bxe4
{[%clk 0:08:48.7]} 20. Nxe4 {[%clk 0:08:08.6]} 20... Nxe5 {[%clk 0:08:44.8]} 21.
Rad1 {[%clk 0:08:04.7]} 21... Qe7 {[%clk 0:08:16.1]} 22. Nd6 {[%clk 0:07:16.2]}
22... Rf8 {[%clk 0:06:47.4]} 23. Rd5 {[%clk 0:05:08.9]} 23... Nc6 {[%clk
0:05:47.7]} 24. Qxe7 {[%clk 0:04:58.6]} 24... Nxe7 {[%clk 0:05:48.2]} 25. Rd2
{[%clk 0:04:59.4]} 25... Nc6 {[%clk 0:05:06.6]} 26. Ne4 {[%clk 0:04:54.4]} 26...
Bd4 {[%clk 0:04:47.8]} 27. Nxd4 {[%clk 0:03:31.3]} 27... cxd4 {[%clk 0:04:46.1]}
28. Ng5 {[%clk 0:03:32.1]} 28... Rae8 {[%clk 0:04:25.4]} 29. Kg1 {[%clk
0:03:25.2]} 29... Re3 {[%clk 0:04:08.2]} 30. Rf6 {[%clk 0:03:16.4]} 30... Ne5
{[%clk 0:02:42.6]} 31. Rxd4 {[%clk 0:03:05.2]} 31... Re1+ {[%clk 0:02:41.7]} 32.
Rf1 {[%clk 0:03:02.4]} 32... Re2 {[%clk 0:02:39.5]} 33. Re4 {[%clk 0:02:22.7]}
33... Rxe4 {[%clk 0:02:36]} 34. Nxe4 {[%clk 0:02:24.6]} 34... Nxc4 {[%clk
0:02:36.9]} 35. b3 {[%clk 0:02:26]} 35... Ne5 {[%clk 0:02:35.2]} 36. Rf6 {[%clk
0:02:26.2]} 36... Ra8 {[%clk 0:02:28.6]} 37. Rb6 {[%clk 0:02:24.6]} 37... a5
{[%clk 0:02:24.4]} 38. Rb5 {[%clk 0:02:25.4]} 38... Nc6 {[%clk 0:02:22.8]} 39.
Nc5 {[%clk 0:02:11.3]} 39... Rd8 {[%clk 0:02:15.7]} 40. Rb6 {[%clk 0:02:10.5]}
40... Nb4 {[%clk 0:02:10.6]} 41. a3 {[%clk 0:02:10.2]} 41... Nc2 {[%clk
0:02:10.5]} 42. a4 {[%clk 0:02:08.3]} 42... Rd2 {[%clk 0:01:47.1]} 43. Ne4
{[%clk 0:02:08.3]} 43... Re2 {[%clk 0:01:45.6]} 44. Nc3 {[%clk 0:02:08.6]} 44...
Re3 {[%clk 0:01:42.9]} 45. Nd5 {[%clk 0:02:07.5]} 45... Rd3 {[%clk 0:01:43.4]}
46. Rb5 {[%clk 0:01:57.7]} 46... Kg7 {[%clk 0:01:11.4]} 47. Kf2 {[%clk
0:01:49.9]} 47... Nd4 {[%clk 0:01:07.3]} 48. Rxa5 {[%clk 0:01:49.7]} 48... Nxb3
{[%clk 0:01:08.1]} 49. Rb5 {[%clk 0:01:50.5]} 49... Nd4 {[%clk 0:01:06.6]} 50.
Rb7 {[%clk 0:01:50.6]} 50... Nf5 {[%clk 0:01:01.7]} 51. Nc7 {[%clk 0:01:40.8]}
51... Ra3 {[%clk 0:00:58.5]} 52. Ra7 {[%clk 0:01:41.1]} 52... Ra2+ {[%clk
0:00:55.6]} 53. Kf3 {[%clk 0:01:40.3]} 53... Nh4+ {[%clk 0:00:56.1]} 54. Kg3
{[%clk 0:01:41.1]} 54... Nf5+ {[%clk 0:00:54.8]} 55. Kf4 {[%clk 0:01:40.3]}
55... Rxg2 {[%clk 0:00:53.9]} 56. a5 {[%clk 0:01:37.6]} 56... Rxh2 {[%clk
0:00:54]} 57. a6 {[%clk 0:01:38.2]} 57... Ra2 {[%clk 0:00:54.1]} 58. Rb7 {[%clk
0:01:37.9]} 58... Nd6 {[%clk 0:00:53.7]} 59. Rb6 {[%clk 0:01:33.5]} 59... Nc8
{[%clk 0:00:49]} 60. Rb8 {[%clk 0:01:27.7]} 60... Ne7 {[%clk 0:00:48.1]} 61. Rb7
{[%clk 0:01:24.2]} 61... Nc6 {[%clk 0:00:43.2]} 62. Ke4 {[%clk 0:01:19.5]} 62...
h5 {[%clk 0:00:43]} 63. Kd5 {[%clk 0:01:20.4]} 63... Nd8 {[%clk 0:00:29.2]} 64.
Rb8 {[%clk 0:01:20.2]} 64... Ne6 {[%clk 0:00:29.9]} 65. Ne8+ {[%clk 0:01:13.1]}
65... Kh6 {[%clk 0:00:29.8]} 66. Rb6 {[%clk 0:01:13.4]} 66... h4 {[%clk
0:00:29.3]} 67. Ke5 {[%clk 0:01:08.1]} 67... h3 {[%clk 0:00:29.3]} 68. Rb3
{[%clk 0:01:07.6]} 68... Ra5+ {[%clk 0:00:25.7]} 69. Kf6 {[%clk 0:01:06]} 69...
Ng5 {[%clk 0:00:25.8]} 70. Rb4 {[%clk 0:00:59.9]} 70... Rxa6+ {[%clk 0:00:26.5]}
71. Ke7 {[%clk 0:01:00.8]} 71... Re6+ {[%clk 0:00:27]} 72. Kf8 {[%clk
0:01:01.4]} 72... Re4 {[%clk 0:00:27.7]} 73. Rb5 {[%clk 0:00:51.7]} 73... h2
{[%clk 0:00:27.7]} 74. Nf6 {[%clk 0:00:52.3]} 74... h1=Q {[%clk 0:00:23.7]} 75.
Ng8+ {[%clk 0:00:52]} 75... Kh5 {[%clk 0:00:22.3]} 76. Nf6+ {[%clk 0:00:52.4]}
76... Kh4 {[%clk 0:00:23.1]} 0-1

[Event "GrandPrix_29.05"]
[Site "Chess.com"]
[Date "2020.05.29"]
[Round "7"]
[White "Jaka_Brilej"]
[Black "chess_big_master"]
[Result "1/2-1/2"]
[WhiteElo "2132"]
[BlackElo "2015"]
[TimeControl "600+2"]
[EndTime "12:34:26 PDT"]
[Termination "Game drawn by stalemate"]

1. e4 {[%clk 0:09:55]} 1... d6 {[%clk 0:10:00.2]} 2. d4 {[%clk 0:09:53.3]} 2...
Nf6 {[%clk 0:10:01.8]} 3. Nc3 {[%clk 0:09:52.6]} 3... e5 {[%clk 0:10:02.9]} 4.
Nf3 {[%clk 0:09:44.2]} 4... Nbd7 {[%clk 0:10:03.2]} 5. Bc4 {[%clk 0:09:44.8]}
5... Be7 {[%clk 0:10:04.1]} 6. O-O {[%clk 0:09:44.5]} 6... O-O {[%clk 0:10:05]}
7. h3 {[%clk 0:09:45.5]} 7... c6 {[%clk 0:10:06]} 8. dxe5 {[%clk 0:09:45.2]}
8... dxe5 {[%clk 0:10:04.2]} 9. Be3 {[%clk 0:09:44]} 9... b5 {[%clk 0:09:52.8]}
10. Bd3 {[%clk 0:09:21.8]} 10... Qc7 {[%clk 0:09:42.6]} 11. a4 {[%clk
0:08:35.5]} 11... b4 {[%clk 0:09:42.2]} 12. Ne2 {[%clk 0:08:35.8]} 12... Nc5
{[%clk 0:09:40.5]} 13. Ng3 {[%clk 0:08:36.2]} 13... Rd8 {[%clk 0:09:36.4]} 14.
Bxc5 {[%clk 0:08:32.9]} 14... Bxc5 {[%clk 0:09:34]} 15. Qe2 {[%clk 0:08:32.5]}
15... h6 {[%clk 0:09:20.6]} 16. b3 {[%clk 0:08:24.7]} 16... Be6 {[%clk
0:09:14.6]} 17. Nh4 {[%clk 0:08:22.2]} 17... g6 {[%clk 0:09:00.1]} 18. Rad1
{[%clk 0:07:53.8]} 18... Nh7 {[%clk 0:07:58.5]} 19. Bc4 {[%clk 0:07:45.1]} 19...
Ng5 {[%clk 0:07:19.7]} 20. Bxe6 {[%clk 0:07:39.8]} 20... Nxe6 {[%clk 0:07:16.8]}
21. Qg4 {[%clk 0:07:40.2]} 21... Nf4 {[%clk 0:06:29.8]} 22. Ne2 {[%clk
0:06:56.2]} 22... Nxe2+ {[%clk 0:05:28]} 23. Qxe2 {[%clk 0:06:54.2]} 23... Qe7
{[%clk 0:05:26.6]} 24. Nf3 {[%clk 0:06:50.5]} 24... Bd4 {[%clk 0:03:56.6]} 25.
Nxd4 {[%clk 0:06:42]} 25... exd4 {[%clk 0:03:52.3]} 26. f4 {[%clk 0:06:42.6]}
26... c5 {[%clk 0:03:41]} 27. Rde1 {[%clk 0:05:24.6]} 27... Rd7 {[%clk
0:03:03.3]} 28. f5 {[%clk 0:04:55.9]} 28... Re8 {[%clk 0:02:40.4]} 29. e5 {[%clk
0:04:25]} 29... Qg5 {[%clk 0:01:15.9]} 30. Qc4 {[%clk 0:03:59.9]} 30... gxf5
{[%clk 0:00:53.6]} 31. Qxc5 {[%clk 0:03:38.1]} 31... d3 {[%clk 0:00:35.5]} 32.
cxd3 {[%clk 0:02:56.8]} 32... Rxd3 {[%clk 0:00:36.2]} 33. e6 {[%clk 0:02:48.2]}
33... fxe6 {[%clk 0:00:21]} 34. Qb5 {[%clk 0:01:51.5]} 34... Rdd8 {[%clk
0:00:09.4]} 35. Qxb4 {[%clk 0:01:46.6]} 35... Rd2 {[%clk 0:00:10.2]} 36. Rf2
{[%clk 0:01:39.5]} 36... Rxf2 {[%clk 0:00:10.3]} 37. Kxf2 {[%clk 0:01:40.1]}
37... f4 {[%clk 0:00:11.5]} 38. Qc4 {[%clk 0:01:28]} 38... Qg3+ {[%clk
0:00:11.1]} 39. Kf1 {[%clk 0:01:24.7]} 39... f3 {[%clk 0:00:11.1]} 40. Qc2
{[%clk 0:00:59.3]} 40... fxg2+ {[%clk 0:00:10.5]} 41. Qxg2 {[%clk 0:01:00.3]}
41... Qxg2+ {[%clk 0:00:04]} 42. Kxg2 {[%clk 0:01:02.2]} 42... Kf7 {[%clk
0:00:05.5]} 43. Kf3 {[%clk 0:01:01.6]} 43... Kf6 {[%clk 0:00:06.3]} 44. Ke4
{[%clk 0:01:01.1]} 44... Rb8 {[%clk 0:00:06.8]} 45. Re3 {[%clk 0:01:00.9]} 45...
Rb4+ {[%clk 0:00:07.8]} 46. Kf3 {[%clk 0:01:02]} 46... Kf5 {[%clk 0:00:07.9]}
47. Rc3 {[%clk 0:01:01.3]} 47... e5 {[%clk 0:00:07.3]} 48. Ke3 {[%clk
0:00:55.7]} 48... h5 {[%clk 0:00:06.8]} 49. Kf3 {[%clk 0:00:51.7]} 49... Rf4+
{[%clk 0:00:05.5]} 50. Ke3 {[%clk 0:00:51.6]} 50... Rh4 {[%clk 0:00:06.6]} 51.
Kf2 {[%clk 0:00:51]} 51... Ke6 {[%clk 0:00:04.3]} 52. Rc7 {[%clk 0:00:46.9]}
52... Rxh3 {[%clk 0:00:04.7]} 53. Rxa7 {[%clk 0:00:45]} 53... Rxb3 {[%clk
0:00:05.5]} 54. Rh7 {[%clk 0:00:45.1]} 54... Rh3 {[%clk 0:00:03.4]} 55. a5
{[%clk 0:00:43.6]} 55... Kf6 {[%clk 0:00:04.2]} 56. Kg2 {[%clk 0:00:31.4]} 56...
Ra3 {[%clk 0:00:04.2]} 57. Rxh5 {[%clk 0:00:27.8]} 57... Rxa5 {[%clk 0:00:05.3]}
58. Rh3 {[%clk 0:00:28.8]} 58... Kf5 {[%clk 0:00:05.9]} 59. Rb3 {[%clk
0:00:29.5]} 59... Kf4 {[%clk 0:00:05]} 60. Kf2 {[%clk 0:00:29.2]} 60... Ra2+
{[%clk 0:00:05.5]} 61. Ke1 {[%clk 0:00:29.8]} 61... Rh2 {[%clk 0:00:05.9]} 62.
Rc3 {[%clk 0:00:30]} 62... Ke4 {[%clk 0:00:05.9]} 63. Ra3 {[%clk 0:00:30.6]}
63... Kd4 {[%clk 0:00:06.8]} 64. Rg3 {[%clk 0:00:31.1]} 64... e4 {[%clk
0:00:06.9]} 65. Ra3 {[%clk 0:00:31.1]} 65... Rb2 {[%clk 0:00:04.3]} 66. Rh3
{[%clk 0:00:30.4]} 66... Rc2 {[%clk 0:00:02.4]} 67. Ra3 {[%clk 0:00:29.7]} 67...
Rc3 {[%clk 0:00:03.8]} 68. Rxc3 {[%clk 0:00:23.3]} 68... Kxc3 {[%clk 0:00:05.7]}
69. Ke2 {[%clk 0:00:24.5]} 69... Kd4 {[%clk 0:00:06.8]} 70. Kd2 {[%clk
0:00:25.6]} 70... e3+ {[%clk 0:00:08.7]} 71. Ke2 {[%clk 0:00:26.8]} 71... Ke4
{[%clk 0:00:10.6]} 72. Ke1 {[%clk 0:00:28.1]} 72... Kd3 {[%clk 0:00:12.5]} 73.
Kd1 {[%clk 0:00:29.4]} 73... e2+ {[%clk 0:00:14.4]} 74. Ke1 {[%clk 0:00:30.9]}
74... Ke3 {[%clk 0:00:15.6]} 1/2-1/2